bitfinex/quotes_ETHUSD_20250623
["timestamp","ask_amount","ask_price","bid_price","bid_amount"]
[1750714721886,1.72605033,2345.8,2345.4,0.93405057]
[1750714722385,1.72605033,2345.8,2345.2,5.07702282]
[1750714722386,1.72605033,2345.8,2345.2,0.8131]
[1750714722593,11.16305033,2345.8,2345.2,0.8131]
[1750714723179,1.71061755,2345.7,2345.2,0.8131]
[1750714723895,1.71061755,2345.7,2345.1,0.04]
[1750714723896,0.8235,2345.6,2345.1,0.04]
[1750714731129,0.39625216,2345.5,2345.1,0.04]
[1750714731475,1.83693477,2345.6,2345.1,1.55343528]
[1750714731676,0.39621802,2345.5,2345.1,1.55343528]
[1750714732415,1.83693477,2345.6,2345.1,1.55343528]
[1750714732621,0.39614792,2345.5,2345.1,0.04]
[1750714734026,0.39657616,2345.4,2345.1,0.04]
[1750714734179,0.39657616,2345.3,2345.1,0.04]
[1750714734384,1.01388185,2345.3,2345.1,0.04]
[1750714734600,0.39630561,2345.2,2345.1,0.04]
[1750714734798,0.39629768,2345.2,2345.1,0.04]
[1750714735021,0.39633902,2345.2,2345.1,0.04]
[1750714735219,1.41022087,2345.2,2345.1,0.04]
[1750714735420,0.39633902,2345.2,2345.1,0.04]
[1750714735623,1.41015954,2345.2,2345.1,0.04]
[1750714736154,1.01388185,2345.2,2345.1,0.04]
[1750714736323,1.41018955,2345.2,2345.1,0.04]
[1750714736689,2.88420081,2345.2,2345.1,0.04]
[1750714736891,3.28049796,2345.2,2345.1,0.04]
[1750714737333,3.28051216,2345.2,2345.1,0.04]
[1750714739095,4.08191216,2345.2,2345.1,0.04]
[1750714739804,4.08196434,2345.2,2345.1,0.04]
[1750714740002,3.68560081,2345.2,2345.1,0.04]
[1750714740328,4.08199238,2345.2,2345.1,0.04]
[1750714740508,3.68560081,2345.2,2345.1,0.04]
[1750714740704,4.08201698,2345.2,2345.1,0.04]
[1750714740930,3.68560081,2345.2,2345.1,0.04]
[1750714741108,4.08200716,2345.2,2345.1,0.04]
[1750714741309,4.08197129,2345.2,2345.1,0.04]
[1750714741697,4.08198643,2345.2,2345.1,0.04]
[1750714742124,4.08197017,2345.2,2345.1,0.04]
[1750714742321,4.08195356,2345.2,2345.1,0.04]
[1750714742603,1.41028402,2345.2,2345.1,0.04]
[1750714743237,1.41024905,2345.2,2345.1,0.04]
[1750714744229,1.01388185,2345.2,2345.1,0.04]
[1750714744438,1.41010518,2345.2,2345.1,0.04]
[1750714744639,1.41014556,2345.2,2345.1,0.04]
[1750714745137,1.41023661,2345.2,2345.1,0.04]
[1750714745504,1.41023347,2345.2,2345.1,0.04]
[1750714745942,1.41025947,2345.2,2345.1,0.04]
[1750714747129,1.41025947,2345.2,2345.1,0.7951]
[1750714747443,1.01388185,2345.2,2345.1,0.7951]
[1750714748425,1.41095524,2345.2,2345.1,0.7951]
[1750714749208,1.41095189,2345.2,2345.1,0.7951]
[1750714751240,1.01388185,2345.2,2345.1,0.7951]
[1750714751418,1.41114407,2345.2,2345.1,0.7951]
[1750714752352,2.19484407,2345.2,2345.1,0.04]
[1750714752505,17.42784407,2345.2,2345.1,0.04]
[1750714753458,0.7837,2344.9,2344.1,0.8525]
[1750714753611,18.78310074,2344.8,2344.1,0.8525]
[1750714753950,1.41110074,2344.7,2344.1,0.8525]
[1750714754102,1.4112299,2344.6,2344.1,0.8525]
[1750714754303,1.4112299,2344.5,2344.1,0.8525]
[1750714754604,1.4112299,2344.4,2344.1,0.8525]
[1750714754958,1.4112299,2344.3,2344.1,0.8525]
[1750714755165,1.01388185,2344.6,2344.1,0.8525]
[1750714755363,1.41085255,2344.5,2344.1,0.8525]
[1750714755659,1.41085255,2344.4,2344.1,0.8525]
[1750714755965,1.01388185,2344.5,2344.1,0.8525]
[1750714756146,1.41083641,2344.4,2344.1,0.8525]
[1750714756483,1.01388185,2344.5,2344.1,0.8525]
[1750714756774,0.39693997,2344.4,2344.1,0.8525]
[1750714757129,1.01388185,2344.5,2344.1,0.8525]
[1750714757473,3.14721804,2344.6,2344.1,0.8525]
[1750714757767,0.39669011,2344.5,2344.1,0.8525]
[1750714758225,3.14721804,2344.6,2344.1,0.8525]
[1750714758424,0.3966907,2344.5,2344.1,0.8525]
[1750714758754,2.13333619,2344.6,2344.1,0.8525]
[1750714758954,0.39654227,2344.5,2344.1,0.8525]
[1750714759177,2.13333619,2344.6,2344.1,0.8525]
[1750714759345,0.39679008,2344.5,2344.1,0.8525]
[1750714759960,2.13333619,2344.6,2344.1,0.8525]
[1750714760120,0.39678058,2344.5,2344.1,0.8525]
[1750714760858,2.13333619,2344.6,2344.1,0.8525]
[1750714761062,0.39650881,2344.5,2344.1,0.8525]
[1750714762347,2.13333619,2344.6,2344.1,0.8525]
[1750714762556,0.39648489,2344.5,2344.1,0.8525]
[1750714762934,2.13333619,2344.6,2344.1,0.8525]
[1750714763134,1.0059512,2344.5,2344.1,0.8525]
[1750714763767,0.60946981,2344.5,2344.1,0.8525]
[1750714765638,2.13333619,2344.6,2344.1,0.8525]
[1750714766570,7.368,2344.6,2344.1,0.8525]
[1750714768981,19.416,2345.1,2344.2,4.2657818]
[1750714769642,0.6,2344.9,2344.2,4.2657818]
[1750714770279,0.6,2344.9,2344.3,4.26557157]
[1750714770763,0.6,2344.9,2344.4,0.8136]
[1750714771361,0.6,2344.9,2344.5,4.26520716]
[1750714771543,0.6,2344.9,2344.5,8.53034612]
[1750714771745,10.0,2345.1,2344.6,4.26510644]
[1750714771955,7.366,2345.2,2344.7,0.8136]
[1750714772355,10.0,2345.1,2344.7,0.8136]
[1750714774494,19.407,2345.3,2344.7,0.8136]
[1750714774792,21.43021,2345.3,2344.7,0.8136]
[1750714775475,12.02321,2345.3,2344.7,0.8136]
[1750714775646,19.38721,2345.3,2344.7,0.8136]
[1750714777393,9.38721,2345.3,2344.7,0.8136]
[1750714779241,19.38721,2345.3,2344.7,0.8136]
[1750714779648,0.6,2345.1,2344.7,0.8136]
[1750714781979,10.0,2345.2,2344.7,0.8136]
[1750714782298,13.011331,2345.2,2344.7,0.8136]
[1750714782454,20.370331,2345.2,2344.7,0.8136]
[1750714782753,17.359,2345.2,2344.7,0.8136]
[1750714784585,0.6,2345.0,2344.7,0.8136]
[1750714794999,0.8118,2344.9,2344.3,0.8213]
[1750714795685,0.8118,2344.9,2344.1,0.04]
[1750714795857,7.351,2344.8,2344.1,0.04]
[1750714797369,1.02028,2344.7,2344.1,0.04]
[1750714798718,1.02028,2344.7,2344.1,4.30601746]
[1750714800202,0.6,2345.0,2344.2,0.799]
[1750714800411,0.6,2345.0,2344.4,9.95385207]
[1750714800574,10.8134,2345.4,2344.4,9.17615207]
[1750714800894,2.59685033,2345.7,2344.8,0.7777]
[1750714801276,10.0,2345.6,2344.9,4.2645485]
[1750714801475,12.19848503,2345.6,2344.9,4.2645485]
[1750714802386,0.6,2345.4,2344.9,4.2645485]
[1750714803110,0.6,2345.4,2345.0,4.26434928]
[1750714803477,0.6,2345.4,2345.1,0.7511]
[1750714803876,0.6,2345.4,2345.0,0.7633]
[1750714804607,0.6,2345.4,2345.0,5.02760644]
[1750714805207,0.6,2345.4,2345.0,0.7633]
[1750714805586,0.6,2345.4,2345.0,5.02768163]
[1750714805905,0.6,2345.4,2345.0,5.95689613]
[1750714806512,0.6,2345.4,2345.0,5.95680316]
[1750714808028,1.4232,2345.4,2344.9,4.26454467]
[1750714809337,1.4232,2345.4,2344.9,4.26457368]
[1750714810228,1.4232,2345.4,2344.8,5.09604889]
[1750714810430,1.4232,2345.4,2344.9,4.26456756]
[1750714810731,0.6,2345.4,2344.9,4.26456756]
[1750714810931,0.6,2345.4,2345.0,0.50959676]
[1750714811595,0.6,2345.4,2345.0,4.77398662]
[1750714811792,0.6,2345.4,2345.0,0.50959676]
[1750714811992,0.6,2345.4,2344.9,4.26444682]
[1750714815342,0.6,2345.4,2344.5,4.26528534]
[1750714815343,0.7998,2345.3,2344.1,0.04]
[1750714815549,10.55,2345.1,2344.1,0.04]
[1750714815713,11.12344096,2345.1,2344.1,0.04]
[1750714816037,2.26957755,2345.7,2344.1,0.04]
[1750714816038,0.7998,2344.8,2344.1,0.04]
[1750714816245,19.367,2345.3,2344.4,0.7645]
[1750714816441,19.367,2345.3,2344.5,4.26529284]
[1750714816659,10.0,2345.3,2344.6,13.44122428]
[1750714817308,10.0,2345.3,2344.6,4.26507221]
[1750714817638,0.7809,2345.2,2344.4,4.26541971]
[1750714817828,0.7809,2345.2,2344.6,0.7617]
[1750714818442,0.7809,2345.2,2344.6,5.02679774]
[1750714820246,0.7809,2345.2,2344.7,4.26491761]
[1750714821346,0.7809,2345.2,2344.7,10.0]
[1750714821548,0.7585,2345.4,2344.9,4.26453048]
[1750714822509,1.01524301,2345.0,2344.9,4.26453048]
[1750714822710,0.7585,2345.4,2344.9,4.26453048]
[1750714823033,0.39651672,2345.3,2344.9,4.26453048]
[1750714823345,0.7585,2345.4,2344.9,4.26453048]
[1750714823549,0.7585,2345.4,2344.9,7.05468334]
[1750714823847,0.7585,2345.4,2345.0,4.26437255]
[1750714824053,0.7585,2345.4,2344.9,7.05462343]
[1750714824548,0.39630827,2345.3,2344.9,7.05462343]
[1750714824928,0.7585,2345.4,2344.9,7.05462343]
[1750714825555,0.7585,2345.4,2344.9,2.79015286]
[1750714825936,0.7585,2345.4,2344.6,0.43589644]
[1750714825937,0.39637858,2345.3,2344.6,0.43589644]
[1750714826139,0.6,2345.2,2344.7,14.26482286]
[1750714826833,0.6,2345.2,2344.8,4.26467918]
[1750714827221,0.8077,2345.2,2344.7,14.2648175]
[1750714827551,0.8077,2345.2,2344.8,4.26474458]
[1750714827855,0.8077,2345.2,2344.8,6.11769714]
[1750714828254,0.8077,2345.2,2344.8,6.11753835]
[1750714828461,0.8077,2345.2,2344.9,4.26445268]
[1750714828643,1.01524301,2345.4,2345.0,4.2642597]
[1750714829635,1.01524301,2345.4,2345.1,4.26420365]
[1750714829964,1.01524301,2345.4,2344.8,12.23195523]
[1750714829965,1.01524301,2345.4,2344.8,19.56295523]
[1750714830171,1.01524301,2345.4,2345.0,4.26439232]
[1750714832371,0.8077,2345.5,2345.0,4.26439232]
[1750714832570,1.82294301,2345.5,2345.0,4.26439232]
[1750714832876,0.8077,2345.5,2345.0,4.26439232]
[1750714833040,1.82294301,2345.5,2345.0,4.26439232]
[1750714833244,0.8077,2345.5,2345.0,7.04272844]
[1750714833570,1.82294301,2345.5,2345.0,2.77833612]
[1750714833785,0.8077,2345.5,2345.0,2.77833612]
[1750714834065,1.82294301,2345.5,2345.1,4.26412469]
[1750714834292,0.8077,2345.5,2345.1,4.26412469]
[1750714834449,0.8077,2345.5,2345.2,1.13068298]
[1750714834643,0.8077,2345.5,2345.1,4.26412469]
[1750714836474,1.01524301,2345.6,2345.0,7.04262231]
[1750714836670,0.39640631,2345.5,2345.1,4.26419485]
[1750714836973,0.39640631,2345.5,2345.2,4.26400526]
[1750714837362,1.01524301,2345.6,2345.2,4.26400526]
[1750714837574,0.39654005,2345.5,2345.2,4.26400526]
[1750714837774,1.01524301,2345.6,2345.2,5.39466968]
[1750714837967,0.6,2345.4,2345.2,5.39466968]
[1750714839293,2.61665033,2345.7,2345.4,4.26355939]
[1750714839591,1.01524301,2345.7,2345.5,4.26346978]
[1750714839767,1.01524301,2345.8,2345.5,4.26346978]
[1750714839968,1.01524301,2345.8,2345.5,5.19784477]
[1750714840797,0.7786,2345.9,2345.5,5.19784477]
[1750714840962,0.39659256,2345.8,2345.5,5.19784477]
[1750714841696,0.7786,2345.9,2345.5,5.19784477]
[1750714841995,0.39655465,2345.8,2345.5,5.19784477]
[1750714842196,0.39655465,2345.8,2345.6,0.94614952]
[1750714842901,1.79384301,2345.9,2345.6,0.94614952]
[1750714843108,0.7786,2345.9,2345.6,0.94614952]
[1750714844211,0.7731,2346.1,2345.6,5.20944414]
[1750714844412,0.39643415,2346.0,2345.6,5.20944414]
[1750714844586,0.39643415,2346.0,2345.7,5.21038432]
[1750714844758,0.7731,2346.1,2345.7,5.21038432]
[1750714845199,0.7731,2346.1,2345.7,4.26309293]
[1750714845404,0.7731,2346.1,2345.6,4.26319696]
[1750714845897,0.7731,2346.1,2345.5,4.2633848]
[1750714846398,0.7731,2346.1,2345.4,4.26356409]
[1750714846585,0.39658297,2346.0,2345.4,11.58356409]
[1750714846900,0.7731,2346.1,2345.5,1.44190641]
[1750714847078,0.39653821,2346.0,2345.5,1.44190641]
[1750714847467,0.7731,2346.1,2345.5,1.44190641]
[1750714847468,1.78834301,2346.1,2345.5,1.44190641]
[1750714847800,0.39653301,2346.0,2345.4,7.32]
[1750714847968,0.6,2345.9,2345.4,7.32]
[1750714848678,0.6,2345.9,2345.4,11.58364996]
[1750714849501,0.6,2345.9,2345.3,0.8165]
[1750714849718,0.7876,2345.8,2345.4,1.53872531]
[1750714850268,0.7876,2345.6,2345.1,4.26420648]
[1750714850505,0.7876,2345.6,2345.0,14.26427861]
[1750714851326,1.41193853,2345.5,2345.0,10.0]
[1750714851603,0.7518,2345.4,2344.8,12.019]
[1750714851769,0.7518,2345.4,2344.8,16.28373254]
[1750714851970,0.7518,2345.4,2345.0,10.0]
[1750714853791,0.7518,2345.4,2345.0,14.2643904]
[1750714855480,0.7518,2345.4,2345.1,4.26418839]
[1750714857392,1.01524301,2345.7,2345.4,4.26353363]
[1750714857590,1.01524301,2345.7,2345.5,4.26348326]
[1750714857984,0.7768,2345.8,2345.5,4.26348326]
[1750714858180,1.01524301,2345.7,2345.5,0.85273301]
[1750714859180,0.7768,2345.8,2345.5,5.11621079]
[1750714859606,1.79204301,2345.8,2345.5,5.11621079]
[1750714859815,0.7768,2345.8,2345.5,0.85273301]
[1750714860018,0.7768,2345.8,2345.5,5.11621213]
[1750714860815,0.7768,2345.8,2345.5,0.85273301]
[1750714861883,0.7768,2345.8,2345.5,5.11614532]
[1750714862121,0.7768,2345.8,2345.6,0.93797363]
[1750714862320,0.7768,2345.8,2345.6,5.20123387]
[1750714862519,0.7949,2346.0,2345.6,5.20123387]
[1750714864123,0.7949,2346.0,2345.6,0.93797363]
[1750714865020,0.7949,2346.0,2345.6,5.20126355]
[1750714866099,0.7949,2346.0,2345.6,0.93797363]
[1750714866714,0.7949,2346.0,2345.7,0.52013511]
[1750714867625,1.01717023,2345.9,2345.7,0.52013511]
[1750714867924,1.81207023,2346.0,2345.7,0.52013511]
[1750714868123,1.01717023,2346.0,2345.7,0.52013511]
[1750714868315,7.86,2346.1,2345.8,4.26285377]
[1750714868493,8.87717023,2346.1,2345.8,4.26285377]
[1750714868694,8.87717023,2346.1,2345.8,10.52021122]
[1750714868906,8.87717023,2346.1,2345.9,4.26272963]
[1750714869228,1.01717023,2346.1,2345.9,4.26272963]
[1750714869416,1.01717023,2346.3,2346.0,4.26257459]
[1750714869611,1.01717023,2346.2,2346.0,4.26257459]
[1750714869924,1.01717023,2346.3,2346.0,6.23219133]
[1750714870133,1.01717023,2346.5,2346.2,5.04791123]
[1750714870422,1.01717023,2346.7,2346.2,9.96185207]
[1750714870602,1.01717023,2346.7,2346.4,4.26184287]
[1750714870797,0.8112,2346.8,2346.5,0.42618429]
[1750714870798,1.82837023,2346.8,2346.5,0.42618429]
[1750714871199,9.67447023,2347.0,2346.6,4.26145118]
[1750714871399,8.6573,2347.0,2346.6,4.26145118]
[1750714871994,8.6573,2347.0,2346.7,4.26126952]
[1750714872194,2.007,2347.2,2346.7,4.26126952]
[1750714872195,2.8043,2347.2,2346.7,5.04376952]
[1750714872395,0.7973,2347.2,2346.8,13.43727359]
[1750714872595,9.67183984,2347.4,2346.8,15.2853779]
[1750714872995,8.6573,2347.4,2346.8,15.2853779]
[1750714873212,0.7973,2347.4,2346.8,15.2853779]
[1750714873523,2.42942841,2347.5,2346.8,17.8423779]
[1750714873724,0.7973,2347.7,2346.8,18.6248779]
[1750714874327,0.7973,2347.7,2346.8,9.44872583]
[1750714874506,0.7973,2347.7,2346.8,23.9158779]
[1750714875433,0.7973,2347.2,2346.5,0.42618429]
[1750714875631,9.17615207,2347.8,2345.0,0.5]
[1750714875632,0.7973,2346.7,2345.1,5.04654683]
[1750714875845,0.7973,2346.5,2345.2,9.17615207]
[1750714876043,0.7973,2346.5,2345.5,10.0]
[1750714876250,0.7709,2346.4,2345.8,9.93655207]
[1750714876410,0.7709,2346.8,2346.1,9.17615207]
[1750714876601,0.04,2346.9,2346.4,13.43785866]
[1750714876798,0.04,2346.9,2346.5,11.55766054]
[1750714877037,0.04,2346.9,2346.7,9.17615207]
[1750714877334,0.04,2346.9,2346.7,13.43743468]
[1750714878147,0.04,2346.9,2346.8,22.31652152]
[1750714878348,0.04,2346.9,2346.8,22.86652152]
[1750714880219,0.8109,2346.9,2346.0,0.41917035]
[1750714880544,0.7709,2346.8,2345.4,4.26349081]
[1750714880856,10.25023348,2346.9,2345.3,4.26372322]
[1750714880857,0.7709,2346.5,2345.3,11.55682851]
[1750714881006,0.7709,2346.3,2345.1,0.7604]
[1750714881210,0.7709,2346.3,2344.8,4.69006075]
[1750714881211,0.7851,2346.2,2344.8,4.69006075]
[1750714881406,10.7851,2346.1,2345.1,10.0]
[1750714881632,2.7911,2346.1,2345.3,4.26373089]
[1750714881829,3.07021,2346.1,2345.3,6.11651936]
[1750714882028,2.7911,2346.1,2345.4,10.0]
[1750714882655,0.7851,2346.1,2345.5,4.26348326]
[1750714882955,2.31001106,2346.5,2345.9,10.55]
[1750714883164,2.31001106,2346.5,2346.1,10.0]
[1750714883456,2.31001106,2346.5,2346.4,4.26184793]
[1750714883958,2.31001106,2346.5,2346.4,22.10484793]
[1750714884459,2.31001106,2346.5,2346.4,22.91454793]
[1750714885944,0.04,2346.9,2346.4,22.91454793]
[1750714886120,0.04,2346.9,2346.8,10.0]
[1750714886322,0.04,2346.9,2346.8,18.71712804]
[1750714887452,0.04,2346.9,2346.8,1.42612804]
[1750714888244,0.7971,2346.8,2345.6,2.006]
[1750714888451,0.55,2346.6,2345.3,1.85278847]
[1750714888750,0.7971,2346.5,2345.0,4.26439232]
[1750714888955,0.7971,2346.5,2345.1,7.29]
[1750714889268,0.7971,2346.4,2345.3,10.0]
[1750714889451,0.7971,2346.4,2345.3,14.26380574]
[1750714889766,0.7971,2346.4,2345.5,4.26343739]
[1750714889926,0.7971,2346.4,2345.7,4.26306474]
[1750714890120,0.7971,2346.4,2345.7,7.29]
[1750714890355,0.7971,2346.4,2345.8,4.26283396]
[1750714890559,0.7971,2346.4,2346.1,4.26234458]
[1750714890761,0.7971,2346.4,2346.1,11.55234458]
[1750714891057,0.7971,2346.4,2346.1,13.334436]
[1750714891569,0.7971,2346.7,2346.3,10.0]
[1750714891863,0.7971,2346.7,2346.4,11.55172291]
[1750714892424,0.7971,2346.7,2346.5,4.26166065]
[1750714894563,0.7971,2346.7,2346.4,11.55176087]
[1750714894737,0.7971,2346.7,2346.4,14.13315132]
[1750714895455,0.04,2346.9,2346.4,14.13315132]
[1750714895664,0.04,2346.9,2346.5,4.26166613]
[1750714896399,0.04,2346.9,2346.6,4.26145696]
[1750714896588,0.04,2346.9,2346.4,14.13315883]
[1750714896879,0.04,2346.9,2346.5,6.55437949]
[1750714897025,0.04,2346.9,2346.6,4.26145709]
[1750714897232,0.04,2346.9,2346.5,6.55437949]
[1750714897233,0.04,2346.9,2346.7,11.55129977]
[1750714898648,0.04,2346.9,2346.8,4.26112152]
[1750714901635,0.04,2346.9,2346.7,11.5502309]
[1750714901851,0.04,2346.9,2346.8,1.15502309]
[1750714902168,0.04,2346.9,2346.8,5.41614461]
[1750714904544,0.04,2346.9,2346.8,5.36614461]
[1750714905796,0.04,2346.9,2346.8,15.36614461]
[1750714907492,0.04,2346.9,2346.8,14.26112152]
[1750714907698,0.04,2346.9,2346.8,10.0]
[1750714908059,0.04,2346.9,2346.7,11.55021693]
[1750714909160,0.04,2346.9,2346.7,7.289]
[1750714909363,0.04,2346.9,2346.7,11.55017232]
[1750714909898,0.04,2346.9,2346.7,7.289]
[1750714910103,0.04,2346.9,2346.7,11.55021955]
[1750714910272,0.04,2346.9,2346.7,14.6387036]
[1750714911996,0.04,2346.9,2346.7,10.37748405]
[1750714912496,0.04,2346.9,2346.7,11.55028073]
[1750714912696,0.04,2346.9,2346.7,7.289]
[1750714912894,0.04,2346.9,2346.7,11.55020533]
[1750714913902,0.04,2346.9,2346.7,7.289]
[1750714928585,0.7837,2346.8,2346.7,10.0]
[1750714928790,0.7837,2346.8,2346.7,17.28]
[1750714930617,1.80499587,2346.8,2346.6,7.279]
[1750714930807,0.7837,2346.8,2346.6,7.279]
[1750714931118,1.02107658,2346.7,2346.6,17.279]
[1750714931428,0.7837,2346.8,2346.6,10.0]
[1750714934839,1.0202113,2346.7,2346.2,1.992]
[1750714935026,1.0202113,2346.6,2346.2,9.269]
[1750714935353,0.783,2346.4,2346.1,7.277]
[1750714935540,1.8032113,2346.4,2346.1,7.277]
[1750714935739,0.783,2346.4,2346.1,7.277]
[1750714938737,0.783,2346.4,2346.1,10.0]
[1750714938922,0.783,2346.4,2346.1,17.276]
[1750714940262,0.783,2346.4,2346.1,19.85612204]
[1750714940423,0.783,2346.4,2346.1,24.11850722]
[1750714941867,1.992,2346.3,2344.6,0.21704265]
[1750714942062,0.55,2345.9,2344.6,8.0631]
[1750714942357,10.0,2345.8,2344.8,10.0]
[1750714942561,0.8083,2345.7,2344.8,10.0]
[1750714942765,1.08083,2345.6,2344.8,10.0]
[1750714942928,0.8083,2345.5,2344.8,10.0]
[1750714943329,0.8083,2345.5,2344.8,17.275]
[1750714943528,0.8083,2345.5,2344.8,10.0]
[1750714943753,0.8083,2345.5,2344.8,17.274]
[1750714943934,0.8083,2345.5,2344.8,7.274]
[1750714944133,1.188913,2345.4,2344.5,11.992]
[1750714944458,0.8083,2345.3,2344.7,7.274]
[1750714945546,0.8083,2345.3,2344.5,14.26519574]
[1750714945863,0.8083,2345.3,2344.6,9.269]
[1750714946062,0.8083,2345.3,2344.6,13.53410765]
[1750714946365,0.8083,2345.3,2344.6,16.39286936]
[1750714947896,0.8083,2345.3,2344.7,10.0]
[1750714948189,1.993,2346.0,2345.0,5.04998212]
[1750714948373,1.993,2346.0,2345.1,7.275]
[1750714948374,0.8022,2345.9,2345.1,7.275]
[1750714948776,0.8022,2345.9,2345.2,4.26390393]
[1750714948972,2.09296699,2345.9,2345.2,4.26390393]
[1750714949200,2.09296699,2345.9,2345.3,4.26382747]
[1750714950017,2.09296699,2345.9,2345.4,4.26365706]
[1750714950207,0.8022,2345.9,2345.4,4.26365706]
[1750714951821,0.8022,2345.9,2345.2,10.0]
[1750714952413,0.8022,2345.9,2345.4,4.26357851]
[1750714952816,0.8022,2345.9,2345.5,4.26345148]
[1750714953331,0.8022,2345.9,2345.4,4.26358446]
[1750714953786,0.8022,2345.9,2345.4,6.11631974]
[1750714954621,0.8022,2345.9,2345.5,4.26346961]
[1750714955016,0.8022,2345.9,2345.4,6.11630006]
[1750714955527,0.8022,2345.9,2345.4,6.11624077]
[1750714955688,0.8022,2345.9,2345.5,4.26335109]
[1750714956221,0.8022,2345.9,2345.5,5.30131028]
[1750714958228,0.8022,2345.9,2345.5,1.03795919]
[1750714959522,0.8022,2345.9,2345.5,5.30141773]
[1750714960288,0.8022,2345.9,2345.5,4.26345854]
[1750714960732,0.8022,2345.9,2345.4,4.26355633]
[1750714961628,0.8022,2345.9,2345.5,4.26346558]
[1750714962760,0.8022,2345.9,2345.6,4.26326683]
[1750714963058,0.8022,2345.9,2345.5,4.26338285]
[1750714963255,0.8022,2345.9,2345.6,4.26327168]
[1750714966460,0.8022,2345.9,2345.5,5.11607316]
[1750714966646,0.8022,2345.9,2345.5,9.37939904]
[1750714966848,0.8022,2345.9,2345.5,5.11602546]
[1750714967458,0.8022,2345.9,2345.6,4.26329822]
[1750714969728,0.8022,2345.9,2345.6,5.20111364]
[1750714970447,0.8022,2345.9,2345.6,4.26316642]
[1750714971971,3.00686988,2346.1,2345.7,10.0]
[1750714972168,3.00686988,2346.1,2345.7,14.26298476]
[1750714972833,3.00686988,2346.1,2345.7,18.52597098]
[1750714973028,3.00686988,2346.1,2345.7,14.26298476]
[1750714973475,3.00686988,2346.1,2345.8,4.26293347]
[1750714973974,3.00686988,2346.1,2345.7,14.26300139]
[1750714975376,3.00686988,2346.1,2345.7,18.52599828]
[1750714975542,3.00686988,2346.1,2345.7,14.26299689]
[1750714975889,3.00686988,2346.1,2345.8,4.26293005]
[1750714976778,3.00686988,2346.1,2345.7,16.92179349]
[1750714976986,3.00686988,2346.1,2345.8,4.26289999]
[1750714978892,3.00686988,2346.1,2345.7,12.65882266]
[1750714979690,3.00686988,2346.1,2345.7,16.92192901]
[1750714981494,3.00686988,2346.1,2345.8,2.35222409]
[1750714983487,2.25246988,2346.1,2345.8,6.61514454]
[1750714984562,2.25246988,2346.1,2345.9,7.257]
[1750714985594,2.25246988,2346.1,2345.9,11.51975353]
[1750714985799,2.25246988,2346.1,2345.9,12.28355353]
[1750714985964,2.25246988,2346.1,2346.0,1.88985515]
[1750714986593,2.25246988,2346.1,2346.0,6.15242974]
[1750714989100,2.25246988,2346.1,2346.0,16.15242974]
[1750714995535,0.8115,2346.5,2346.2,4.2621177]
[1750714995720,0.8115,2346.5,2346.3,7.25]
[1750714996019,0.8115,2346.5,2346.3,11.51202621]
[1750714997521,0.8115,2346.5,2346.3,7.25]
[1750714998219,0.8115,2346.5,2346.3,11.51200879]
[1750714998918,0.8115,2346.5,2346.3,7.25]
[1750715002447,0.7823,2346.7,2346.3,7.25]
[1750715003348,0.7823,2346.7,2346.3,8.01896751]
[1750715003551,8.6823,2346.9,2346.3,13.10214204]
[1750715003743,0.39674854,2346.8,2346.3,11.51187453]
[1750715004322,8.6823,2346.9,2346.3,11.51187453]
[1750715004547,0.39668572,2346.8,2346.3,11.51187453]
[1750715004861,8.6823,2346.9,2346.3,11.51187453]
[1750715005018,0.39668627,2346.8,2346.3,11.51187453]
[1750715005562,9.69809023,2346.9,2346.3,11.51187453]
[1750715005851,0.39670135,2346.8,2346.3,11.51187453]
[1750715006219,8.6823,2346.9,2346.3,11.51187453]
[1750715006418,0.39694539,2346.8,2346.3,11.51187453]
[1750715006833,8.6823,2346.9,2346.3,13.1714217]
[1750715007037,0.39694844,2346.8,2346.3,13.1714217]
[1750715007291,9.69809023,2346.9,2346.3,13.1714217]
[1750715007458,0.39692006,2346.8,2346.3,13.1714217]
[1750715007638,8.6823,2346.9,2346.3,13.1714217]
[1750715007975,0.3969223,2346.8,2346.3,13.1714217]
[1750715008278,9.69809023,2346.9,2346.3,13.1714217]
[1750715008450,0.39688609,2346.8,2346.3,13.1714217]
[1750715008650,8.6823,2346.9,2346.3,13.1714217]
[1750715008862,0.39692385,2346.8,2346.3,13.1714217]
[1750715009177,8.6823,2346.9,2346.3,13.1714217]
[1750715009178,9.69809023,2346.9,2346.3,13.1714217]
[1750715009333,0.39690841,2346.8,2346.3,13.1714217]
[1750715009750,0.8223,2346.9,2346.3,13.1714217]
[1750715009950,0.39697841,2346.8,2346.3,13.1714217]
[1750715010174,0.8223,2346.9,2346.4,1.39927217]
[1750715010475,0.8223,2346.9,2346.5,7.239]
[1750715010678,0.39712805,2346.8,2346.5,7.239]
[1750715011039,0.8223,2346.9,2346.5,7.239]
[1750715011239,0.39710928,2346.8,2346.5,7.239]
[1750715011439,0.8223,2346.9,2346.5,7.239]
[1750715011642,0.3971577,2346.8,2346.5,7.239]
[1750715011841,1.01579023,2346.8,2346.5,8.52901467]
[1750715012042,0.8223,2346.9,2346.5,8.52901467]
[1750715012242,0.39716906,2346.8,2346.5,8.52901467]
[1750715012442,1.01579023,2346.8,2346.5,8.52901467]
[1750715014340,0.39720313,2346.7,2346.5,8.52901467]
[1750715014538,1.01729374,2346.8,2346.5,8.52901467]
[1750715014750,1.01729297,2346.8,2346.5,8.52901467]
[1750715015076,0.39722583,2346.7,2346.5,8.52901467]
[1750715015272,1.01726477,2346.8,2346.6,0.85290147]
[1750715021463,1.01726477,2346.8,2346.6,8.08390147]
[1750715021887,1.01775274,2346.8,2346.6,8.08390147]
[1750715022189,0.04,2346.9,2346.6,8.08390147]
[1750715022389,1.41578227,2346.8,2346.6,8.08390147]
[1750715022562,0.04,2346.9,2346.6,8.08390147]
[1750715022765,1.41596116,2346.8,2346.6,8.08390147]
[1750715022995,1.01811736,2346.8,2346.6,8.08390147]
[1750715023503,0.04,2346.9,2346.6,8.08390147]